[Event "ESP-chT Honor Division 2022"]
[Site "Linares"]
[Date "2022.09.20"]
[Round "4.16"]
[White "Yuffa, Daniil"]
[Black "Suarez Garcia, Carlos"]
[Result "1-0"]
[ECO "D37"]
[WhiteElo "2600"]
[BlackElo "2455"]
[Annotator "TA"]
[PlyCount "127"]
[EventDate "2022.09.17"]
[EventType "team-tourn"]
[EventCountry "ESP"]
[SourceTitle "playchess.com"]
[Source "ChessBase"]
[SourceQuality "1"]
[TimeControl "5400+30"]

{[%evp 11,127,10,11,10,16,9,9,0,0,2,11,12,8,12,11,0,11,10,9,12,12,10,12,6,12,12,17,0,22,0,30,31,27,0,0,0,0,0,0,0,0,0,0,0,0,0,0,0,0,0,0,0,0,0,0,0,0,0,0,0,0,0,0,0,18,15,370,370,523,523,515,397,394,385,4268,3194,1103,337,306,312,529,527,501,504,646,609,1052,962,1003,894,820,674,1064,995,795,686,1517,1478,1087,932,2478,2271,5073,1658,4133,3036,29979,29979,29977,29978,29981,29982,29982,29982,29981,29982,29982,29983]} 1. d4 {[%emt 0:00:58]} d5 {[%emt 0:00:16]} 2. c4 {[%emt 0:00:21]} e6 {[%emt 0:00:10]} 3. Nf3 {[%emt 0:00:11]} Nf6 {[%emt 0:00:21]} 4. Nc3 {[%emt 0:00:16]} Be7 {[%emt 0:00:35]} 5. Bf4 {[%emt 0:00:08]} O-O {[%emt 0:00:20]} 6. e3 {[%emt 0:00:05]} Nbd7 {[%emt 0:00:48] CPLX 2.2} 7. c5 {[%emt 0:00:13] CPLX 2.2 1 (Bf1-d3) (=1). D37: Queen's Gambit Declined: 5 Bf4.} c6 {[%emt 0:00:30] BESTDEEP} 8. b4 {[%emt 0:00:36] CPLX 2.0 7 (a2-a3) (=4)} b6 {[%emt 0:02:58] BESTDEEP} 9. Bd3 {[%emt 0:07:50] CPLX 2.2 9 (h2-h3) (=6). The position is equal. 9.h3 is not played anymore.} a5 {[%emt 0:01:36] CPLX 2.4} 10. a3 {[%emt 0:00:25] CPLX 2.6} Ba6 {[%emt 0:00:43] CPLX 2.6 9 (Nf6-h5) (=2)} 11. O-O {[%emt 0:02:10] CPLX 2.8} Qc8 {[%emt 0:00:15] BESTDEEP} 12. h3 {[%emt 0:05:08] CPLX 2.8} Qb7 {[%emt 0:04:26] BESTDEEP} 13. Rb1 $1 {[%emt 0:01:09][%mdl 4] CPLX 2.9 11 (Qd1-e2) (=4) is recently more successful than 13.Qc2.} Bxd3 {[%emt 0:01:24] CPLX 2.9 11 (a5xb4) (=3)} 14. Qxd3 {[%emt 0:00:06] RECAPT} axb4 {[%emt 0:00:20] CPLX 2.6} 15. axb4 {[%emt 0:00:05] RECAPT} Ra3 {[%emt 0:07:03][%cal Of6e4] CPLX 2.6} 16. Qc2 {[%emt 0:00:43] Against Ne4. CPLX 3.2} Rfa8 {[%emt 0:03:12] CPLX 2.7} 17. Rfc1 $5 {[%emt 0:00:38][%mdl 4] CPLX 2.8 A promising side line.} b5 {[%emt 0:02:46] CPLX 2.8 6 (g7-g6) (=2)} 18. Nd2 {[%emt 0:01:06][%cal Bf3d2,Bd2b3,Bb3a5][%mdl 32] BESTDEEP} Bd8 {[%emt 0:01:32] CPLX 2.6 5 (Ra3-a6) (=2)} 19. Nb3 {[%emt 0:00:42] CPLX 2.5 17 (Bf4-d6) (=3)} R3a6 {[%emt 0:05:19] [#] CPLX 2.6 22 (Nf6-e4) (=4)} 20. Qe2 $5 $146 {[%emt 0:04:10][%mdl 8] CPLX 2.4 22 (Rb1-a1) (=5) New and interesting.} ({Predecessor:} 20. Ra1 h6 21. Rxa6 Rxa6 22. Ra1 Rxa1+ 23. Nxa1 Nb8 24. Bxb8 Qxb8 25. Qa2 Qb7 26. Nb3 {½-½ (54) Illescas Cordoba,M (2626)-Goldin,A (2620) Mallorca 2004}) 20... Bc7 {[%emt 0:03:33] CPLX 2.3 30 (Nf6-e4) (=6)} 21. Bxc7 {[%emt 0:07:08] BESTDEEP} Qxc7 {[%emt 0:00:02] RECAPT} 22. Na5 {[%emt 0:03:12] CPLX 2.5 27 (Qe2-d1) (=6)} Ne4 {[%emt 0:10:42] BESTDEEP} 23. f3 {[%emt 0:07:54] BESTDEEP} Nxc3 {[%emt 0:01:12] CPLX 3.5} (23... Ng3 {with more complications.} 24. Qe1 h5 25. Nxc6 Rxc6 26. Nxb5 Qb8) 24. Rxc3 {[%emt 0:00:11] RECAPT} e5 {[%emt 0:02:31] CPLX 2.4} 25. Qf2 {[%emt 0:01:15] BESTDEEP} Re8 {[%emt 0:10:50] CPLX 2.3 0 (e5-e4) (=4)} 26. Qg3 {[%emt 0:09:24] CPLX 2.3 0 (Rb1-e1) (=5)} Ra7 {[%emt 0:03:47] CPLX 2.7} 27. Rd1 {[%emt 0:03:04] CPLX 2.7} exd4 {[%emt 0:07:02] CPLX 2.7 0 (h7-h6) (=4)} 28. Qxc7 {[%emt 0:00:11] EASY} Rxc7 {[%emt 0:00:02] RECAPT} 29. exd4 {[%emt 0:05:36] CPLX 2.3 0 (Rd1xd4) (=4)} Nb8 {[%emt 0:02:41] CPLX 2.0 0 (g7-g5) (=3)} 30. Kf2 {[%emt 0:02:50] CPLX 2.0 0 (Rc3-a3) (=4)} Na6 {[%emt 0:01:57] CPLX 2.0} 31. Rb1 $40 {[%emt 0:06:55][%mdl 128] White attacks. CPLX 2.0} Ra8 {[%emt 0:00:11][%cal Oa6b4] And now ...Nxb4! would win. CPLX 2.0} 32. Ra3 {[%emt 0:00:20] CPLX 2.0} Nxb4 $1 {[%emt 0:01:03] DEEPSTRONG} 33. Rxb4 {[%emt 0:00:16][%cal Oa5c4] Threatens to win with Nc4! RECAPT} Rca7 {[%emt 0:00:04] EASY} 34. Nxc6 {[%emt 0:00:32] CPLX 2.4} Rxa3 {[%emt 0:00:05] EASY} 35. Rxb5 $11 {[%emt 0:00:33][%mdl 4096] Endgame KRR-KRN. CPLX 2.5} Ra2+ {[%emt 0:03:34] CPLX 2.4 0 (Kg8-f8) (=3)} 36. Kg3 {[%emt 0:00:28] CPLX 2.4} Rd2 {[%emt 0:06:16] CPLX 2.4} 37. Rb7 {[%emt 0:05:27] CPLX 2.5 0 (Nc6-b4) (=3)} Kf8 {[%emt 0:03:05] CPLX 2.5 18 (g7-g6) (=3)} 38. Ne5 {[%emt 0:04:48] CPLX 2.6} Rxd4 $2 {[%emt 0:04:45][%mdl 8192] A mistake that costs the game. RELBLUND 355 (Kf8-g8) (=14)} (38... Kg8 $11) 39. c6 $1 $18 {[%emt 0:00:32][%cal Bc5c6,Bc6c7][%mdl 32] DEEPSTRONG=>BLUNDERREACT} ({Weaker is} 39. Rxf7+ Kg8 $11) 39... Re8 {[%emt 0:02:46] [#] CPLX 3.0 153 (Rd4-d2) (=18)} (39... f6 $2 40. c7 $1 Rc8 41. Rb8 $18) (39... Rd2 $142 40. c7 (40. Rxf7+ Kg8 $16) 40... Rc2) 40. c7 $1 {[%emt 0:01:31] Intending Rb8 and mate. DEEPSTRONG=>BLUNDERREACT} Rd2 {[%emt 0:02:42] CPLX 3.6 0 (Rd4-d1) (=17)} 41. Nd7+ {[%emt 0:01:17] CPLX 3.6 118 (Ne5xf7) (=6)} ({Stronger than} 41. Rb8 Rc2 42. Nd7+ Ke7 $11) 41... Ke7 {[%emt 0:00:55] EASY} 42. Nb6 {[%emt 0:00:09] EASY} Ke6 $2 {[%emt 0:00:29] BEVAL 400 (Ke7-d6) (=27)} (42... Kd6 43. c8=Q Rxc8 44. Nxc8+ Ke6 45. Rb6+ Kd7) 43. Rb8 {[%emt 0:03:20] BEVAL} Kd6 {[%emt 0:00:05] BEVAL} 44. Rxe8 $2 {[%emt 0:00:40] CPLX 3.7 400 (Nb6-a8) (=16)} (44. Na8 {Hoping for Rd8+.} Rxg2+ 45. Kxg2 Re2+ 46. Kf1) 44... Kxc7 {[%emt 0:00:04] KRN-KR. EASY} 45. Na4 {[%emt 0:00:38] CPLX 2.3} Rc2 $2 {[%emt 0:01:08] CPLX 2.0 217 (Kc7-c6) (=31)} (45... Kc6 46. Rc8+ Kd6) 46. Re7+ {[%emt 0:01:21] CPLX 2.0} Kc6 {[%emt 0:00:07] CPLX 2.0} 47. Rxf7 {[%emt 0:00:51] EASY} d4 {[%emt 0:00:52] CPLX 2.1 142 (Kc6-b5) (=33)} 48. Rxg7 {[%emt 0:02:01] EASY} Ra2 {[%emt 0:02:38] [#] BEVAL 400 (d4-d3) (=41)} 49. Rxh7 $1 {[%emt 0:08:34] EVAL} Rxa4 {[%emt 0:00:04] KR-KR. BEVAL} 50. Rh8 {[%emt 0:00:21] EVAL} Kd7 {[%emt 0:02:25] EVAL} 51. Rb8 {[%emt 0:01:23] CPLX 2.0 146 (Rh8-g8) (=17)} Kc7 {[%emt 0:01:46] BEVAL 390 (Kd7-e7) (=47)} 52. Rb1 {[%emt 0:00:34] EVAL} Kd6 {[%emt 0:00:10] EVAL 0 (Kc7-d7) (=46)} 53. h4 {[%emt 0:00:33][%cal Bh3h4,Bh4h5,Bh5h6,Bh6h7][%mdl 32] CPLX 2.0 109 (Kg3-f4) (=18)} Kc5 {[%emt 0:00:59] BEVAL 400 (d4-d3) (=53)} 54. h5 {[%emt 0:00:32]} d3 {[%emt 0:00:12]} 55. h6 {[%emt 0:01:16]} Ra7 {[%emt 0:01:49]} 56. Kf4 {[%emt 0:00:57]} Kd4 {[%emt 0:00:04]} 57. g4 {[%emt 0:00:43]} (57. Rh1 $142 Rh7 58. Kg5) 57... Rf7+ {[%emt 0:00:08]} 58. Kg5 {[%emt 0:01:22]} Rxf3 {[%emt 0:00:34]} 59. h7 {[%emt 0:00:25] White mates.} Rh3 {[%emt 0:00:11]} 60. Kg6 {[%emt 0:00:18]} Ke3 {[%emt 0:00:50]} 61. g5 {[%emt 0:00:22]} Kf4 {[%emt 0:00:17]} 62. Rf1+ {[%emt 0:00:18]} Kg4 {[%emt 0:00:17]} 63. Rg1+ {[%emt 0:00:11]} Kf4 {[%emt 0:00:05]} 64. Kg7 {[%emt 0:00:19] Weighted Error Value: White=0.26 (precise) /Black=0.31} 1-0

[Event "ESP-chT Honor Division 2022"]
[Site "Linares"]
[Date "2022.09.20"]
[Round "4.17"]
[White "Trigo Urquijo, Sergio"]
[Black "Ibarra Jerez, Jose Carlos"]
[Result "1/2-1/2"]
[ECO "A04"]
[WhiteElo "2402"]
[BlackElo "2570"]
[Annotator "TA"]
[PlyCount "92"]
[EventDate "2022.09.17"]
[EventType "team-tourn"]
[EventCountry "ESP"]
[SourceTitle "playchess.com"]
[Source "ChessBase"]
[SourceQuality "1"]
[TimeControl "5400+30"]

{[%evp 11,92,0,10,0,0,0,0,0,0,0,0,-27,-25,-21,-21,-23,-21,-48,-47,-51,-53,-40,-40,-47,-40,-39,-46,-39,-44,-46,-46,-46,-43,-35,-15,-16,-23,-17,-15,-21,-18,-24,-15,-15,-15,-15,-15,-15,-15,-15,-3,-15,-3,-3,-3,-15,-15,-22,-16,-20,0,-22,-22,-22,-3,-22,-22,-22,-22,-22,-22,-22,-22,-22,-22,-22,-22,-22,-22,-22,-22,-29,0]} 1. Nf3 {[%emt 0:00:24]} c5 {[%emt 0:01:48]} 2. g3 {[%emt 0:01:22]} Nc6 {[%emt 0:00:38]} 3. c4 {[%emt 0:01:40]} g6 {[%emt 0:01:05]} 4. Bg2 {[%emt 0:00:39]} Bg7 {[%emt 0:00:12]} 5. O-O {[%emt 0:00:56]} d6 {[%emt 0:03:16]} 6. Nc3 {[%emt 0:01:23]} Bf5 {[%emt 0:05:54] CPLX 2.0 10 (e7-e5) (=10) 6...e6 is becoming the main line.} 7. h3 {[%emt 0:03:24] CPLX 2.1 10 (d2-d3) (=10). A37: Symmetrical English vs ...g6: 4 Bg2 Bg7 5 Nf3.} e5 {[%emt 0:03:55] DEEPSTRONG} 8. d3 {[%emt 0:02:35] CPLX 2.3} Nge7 {[%emt 0:00:11] CPLX 2.2} 9. e4 {[%emt 0:07:56] CPLX 2.2 0 (a2-a3) (=3). The position is equal.} Bd7 {[%emt 0:02:28] CPLX 2.4} 10. a3 {[%emt 0:02:59] BESTDEEP} O-O {[%emt 0:00:49] [#] CPLX 2.1} 11. b4 $146 {[%emt 0:05:05] CPLX 2.1 27 (Bc1-d2) (=7)} ({Predecessor:} 11. Rb1 a5 12. b3 f5 13. Nb5 Bc8 14. exf5 Bxf5 15. Nh4 Qd7 16. Nxf5 Nxf5 17. Qg4 {0-1 (41) Lopes,L (1575)-Dias,M (1876) Florianopolis 2021}) 11... cxb4 {[%emt 0:09:22] CPLX 2.5} 12. axb4 {[%emt 0:00:50] RECAPT 0 (Nc3-d5) (=6)} Nxb4 {[%emt 0:00:07] RECAPT} 13. Ba3 {[%emt 0:01:40] BESTDEEP} a5 {[%emt 0:02:42] CPLX 2.6} 14. Qb3 {[%emt 0:05:01] CPLX 2.6 27 (Qd1-d2) (=8)} Nec6 {[%emt 0:02:42] CPLX 2.8} ({Don't play} 14... Nxd3 15. Bxd6 Nc6 16. Rfd1 $16 (16. Qxb7 Ndb4 $14) (16. Bxf8 Bxf8 17. Nd5 Nc5 $11)) 15. Nd5 {[%emt 0:03:15] CPLX 2.7 4 (Rf1-d1) (=8)} Ra6 {[%emt 0:05:33] BESTDEEP} 16. Bxb4 {[%emt 0:11:10] BESTDEEP} axb4 {[%emt 0:08:33] RECAPT 0 (Nc6xb4) (=1)} 17. Nxb4 {[%emt 0:03:36] RECAPT 7 (Qb3-c2) (=7)} Rxa1 {[%emt 0:14:40] CPLX 3.0 7 (Qd8-b6) (=1)} 18. Rxa1 {[%emt 0:00:32] RECAPT} Qb6 {[%emt 0:00:43] CPLX 2.5} 19. Rb1 {[%emt 0:00:58] EASY} Qxb4 {[%emt 0:00:58] BESTDEEP} 20. Qxb4 {[%emt 0:00:10] RECAPT} Nxb4 {[%emt 0:00:03] RECAPT} 21. Rxb4 {[%emt 0:00:11] RECAPT} Bc6 {[%emt 0:00:22] CPLX 2.0} 22. Ne1 {[%emt 0:05:51] CPLX 2.0 0 (Nf3-h2) (=5)} Bh6 {[%emt 0:06:02] CPLX 2.0 20 (Rf8-a8) (=2)} (22... Ra8 $5 {[%cal Ra8a1]} 23. Nc2 Ra2 $15) 23. Rb2 {[%emt 0:08:36] CPLX 2.0 1 (Ne1-f3) (=4)} Ra8 {[%emt 0:00:45] CPLX 2.0} 24. Nc2 {[%emt 0:00:59] Inhibits Ra1+. CPLX 2.0} Bc1 {[%emt 0:06:02] CPLX 2.0 2 (Bh6-d2) (=2)} 25. Rb1 {[%emt 0:01:04] CPLX 2.1} Bd2 {[%emt 0:00:25] CPLX 2.1} 26. Nb4 {[%emt 0:01:56] CPLX 2.0 6 (Bg2-f3) (=4)} Bc3 {[%emt 0:03:14] CPLX 2.1 9 (Bd2xb4) (=2)} 27. Nxc6 {[%emt 0:05:03] BESTDEEP} bxc6 $11 {[%emt 0:00:02][%mdl 4096] Endgame KRB-KRB. RECAPT} 28. Bf3 {[%emt 0:00:36] CPLX 2.0} Ra2 {[%emt 0:01:31] CPLX 2.0 0 (Bc3-d4) (=2)} 29. Kf1 {[%emt 0:00:15] BESTDEEP} Bd4 {[%emt 0:01:08] CPLX 2.0} 30. Be2 {[%emt 0:00:27] BESTDEEP} Kg7 {[%emt 0:01:05] CPLX 2.0 12 (h7-h5) (=2)} 31. Rb7 {[%emt 0:01:57] CPLX 2.0 12 (g3-g4) (=4)} Kf6 {[%emt 0:00:42] CPLX 2.0 12 (h7-h5) (=3)} 32. Rc7 {[%emt 0:01:07] CPLX 2.0} Ra6 {[%emt 0:00:26] CPLX 2.0 0 (Ra2-a1) (=3)} 33. Rb7 {[%emt 0:00:20] CPLX 2.0 12 (g3-g4) (=4)} h5 {[%emt 0:00:23] CPLX 2.0 0 (Ra6-a1) (=3)} 34. h4 {[%emt 0:00:39] CPLX 2.0 7 (Rb7-c7) (=4)} Ke6 {[%emt 0:00:38] CPLX 2.0 6 (Ra6-a1) (=3)} 35. Rc7 {[%emt 0:02:36] CPLX 2.0} Ra2 {[%emt 0:00:52] CPLX 2.0 20 (Ra6-b6) (=3)} 36. Rb7 {[%emt 0:01:22] CPLX 2.0 22 (g3-g4) (=5)} Ra8 {[%emt 0:01:38] CPLX 2.1 0 (Ra2-a1) (=3)} 37. Kg2 {[%emt 0:01:19] CPLX 2.0} Bc5 {[%emt 0:01:25] CPLX 2.0 19 (Ke6-f6) (=4)} 38. Rb2 {[%emt 0:01:05] CPLX 2.0 19 (g3-g4) (=5)} Ra7 {[%emt 0:00:36] CPLX 2.0 0 (Ke6-f6) (=4)} 39. Rb8 {[%emt 0:01:20] CPLX 2.0} Bd4 {[%emt 0:01:57] CPLX 2.0 0 (Ke6-e7) (=3)} 40. Re8+ {[%emt 0:00:38] CPLX 2.0 0 (Rb8-h8) (=5)} Kd7 {[%emt 0:00:13] CPLX 2.0} 41. Rf8 {[%emt 0:00:26] CPLX 2.0} Ke7 {[%emt 0:00:06] CPLX 2.0 0 (Ra7-a2) (=3)} 42. Rc8 {[%emt 0:00:29] CPLX 2.0 0 (Rf8-b8) (=4)} Bc5 {[%emt 0:00:32] CPLX 2.0 0 (Ra7-a3) (=3)} 43. Rb8 {[%emt 0:00:22] CPLX 2.0 0 (Kg2-f1) (=4)} (43. Rxc6 $2 Kd7 44. Rxc5 dxc5 $17) 43... Ra2 {[%emt 0:01:15] CPLX 2.0 0 (Ra7-a1) (=3)} 44. Kf1 {[%emt 0:00:11] BESTDEEP} Kd7 {[%emt 0:01:10] CPLX 2.0 0 (Ra2-a1) (=3)} 45. Rf8 {[%emt 0:00:23] CPLX 2.0 0 (Rb8-b7) (=4)} Ke6 {[%emt 0:00:23] CPLX 2.0 0 (Ra2-a1) (=3)} 46. Re8+ {[%emt 0:00:08] CPLX 2.0 7 (Rf8-c8) (=4)} Kd7 {[%emt 0:01:49] Weighted Error Value: White=0.04 (flawless) /Black=0.03 (flawless)} 1/2-1/2

[Event "ESP-chT Honor Division 2022"]
[Site "Linares"]
[Date "2022.09.20"]
[Round "4.18"]
[White "Batsiashvili, Nino"]
[Black "Ambartsumova, Karina"]
[Result "1-0"]
[ECO "E73"]
[WhiteElo "2477"]
[BlackElo "2386"]
[Annotator "TA"]
[PlyCount "63"]
[EventDate "2022.09.17"]
[EventType "team-tourn"]
[EventCountry "ESP"]
[SourceTitle "playchess.com"]
[Source "ChessBase"]
[SourceQuality "1"]
[TimeControl "5400+30"]

{[%evp 14,63,46,35,37,30,22,11,13,9,94,88,71,13,29,0,0,-43,-36,-28,-41,-43,-37,-55,-33,-40,-22,-77,-72,-92,-52,-59,34,56,50,66,77,56,173,170,230,234,380,375,508,477,734,729,1079,1046,1019,991]} 1. d4 {[%emt 0:00:04]} Nf6 {[%emt 0:00:16]} 2. c4 {[%emt 0:00:05]} g6 {[%emt 0:00:26]} 3. Nc3 {[%emt 0:00:05]} Bg7 {[%emt 0:00:45]} 4. e4 {[%emt 0:02:17]} d6 {[%emt 0:00:28]} 5. Be2 {[%emt 0:00:15]} O-O {[%emt 0:01:25]} 6. Be3 {[%emt 0:00:04]} e5 {[%emt 0:03:01]} 7. d5 {[%emt 0:00:21]} Na6 {[%emt 0:01:53]} 8. h4 {[%emt 0:02:34][%cal Bh2h4,Bh4h5,Bh5h6][%mdl 32] MISS-Ng1-f3 11 (Ng1-f3) (=11)} Nc5 {[%emt 0:01:13] CPLX 2.0. E73: King's Indian: Averbakh Variation without 6...c5.} 9. Qc2 {[%emt 0:00:22] CPLX 2.3 7 (Be3xc5) (=9)} c6 {[%emt 0:08:58] BESTDEEP} 10. h5 {[%emt 0:04:06] CPLX 2.5 11 (Be3xc5) (=10)} cxd5 {[%emt 0:08:21] BESTDEEP. The position is equal.} 11. cxd5 {[%emt 0:00:08] RECAPT} ({Much worse is} 11. h6 d4 12. hxg7 Re8 $15) 11... a5 {[%emt 0:01:32] RELBLUND 85 (Qd8-a5) (=21)} (11... Qa5 $11 {remains equal.} 12. h6 Bh8) 12. h6 {[%emt 0:13:20] CPLX 2.7 6 (Be3xc5) (=7)} Bh8 {[%emt 0:00:37] EASY} 13. Nh3 {[%emt 0:06:29] [#] RELBLUND 58 (Be3xc5) (=16)} (13. Bxc5 $16 {aiming for Ba3.} dxc5 14. Rd1) 13... Bd7 $146 {[%emt 0:12:02] CPLX 2.5} ({Predecessor:} 13... Bxh3 14. Rxh3 Rc8 15. f3 Qd7 16. Bb5 Qc7 17. g4 Nfd7 18. Kf2 Bf6 19. Kg2 Ra8 {1-0 (45) Matsuura,E (2437)-Luz,A (2199) Niteroi 2022}) 14. f3 {[%emt 0:12:10] CPLX 2.6 29 (Be3xc5) (=17)} (14. Bxc5 $5 dxc5 15. Rd1 $14) 14... Nh5 {[%emt 0:16:32][%cal Bf6h5,Bh5g3,Bg3e2][%mdl 32] BESTDEEP} 15. g4 {[%emt 0:00:41] MISS-Be3xc5 43 (Be3xc5) (=21)} Ng3 {[%emt 0:00:18] EASY} 16. Rg1 {[%emt 0:02:22] CPLX 3.2} Nxe2 {[%emt 0:00:23] CPLX 3.2} 17. Qxe2 {[%emt 0:00:11] RECAPT} a4 {[%emt 0:01:18] BESTDEEP} 18. Nf2 {[%emt 0:11:50] CPLX 2.9 18 (Ke1-f1) (=17)} Qa5 {[%emt 0:03:16] CPLX 2.6 22 (Bh8-f6) (=10)} 19. Qd2 {[%emt 0:08:13] CPLX 2.7 7 (Ke1-f1) (=16)} Rfc8 {[%emt 0:02:27] CPLX 2.6 18 (Ra8-c8) (=10)} (19... Rac8 {is interesting.} 20. Kf1 Bf6 21. Rc1 b5) 20. Ncd1 {[%emt 0:04:20] RELBLUND 55 (Ra1-c1) (=19)} (20. Rc1 $11) 20... Qa6 $17 {[%emt 0:05:19] BESTDEEP} 21. Bg5 {[%emt 0:02:59] CPLX 2.7 20 (Ra1-b1) (=19)} Rc7 {[%emt 0:06:07] CPLX 2.8 40 (a4-a3) (=12)} 22. Rc1 {[%emt 0:03:55] CPLX 2.8} a3 {[%emt 0:09:18] RELBLUND 93 (Ra8-c8) (=17)} (22... Rac8 $15 23. Rc3 Bb5) 23. b4 $14 {[%emt 0:01:03] EASY} Nb3 {[%emt 0:00:13] BESTDEEP} 24. axb3 {[%emt 0:01:15] EASY} Rxc1 {[%emt 0:00:16] CPLX 4.3} 25. Qxc1 {[%emt 0:00:01] RECAPT} a2 {[%emt 0:00:58] CPLX 3.8 117 (Qa6-b5) (=21)} (25... Qb5 $14) 26. Qa1 $18 {[%emt 0:00:06] Strongly threatening Nc3. EASY} Qa3 {[%emt 0:07:57] [#] CPLX 4.2 60 (Qa6-b6) (=23)} (26... Qb6 $142) 27. Nc3 $1 {[%emt 0:01:32] Rg2 is the strong threat. CPLX 3.6} Qxb4 {[%emt 0:01:32] CPLX 3.7 146 (Qa3xb3) (=29)} (27... Qxb3 $142 28. Nfd1 f6) 28. Nfd1 {[%emt 0:00:10] DEEPSTRONG=>BLUNDERREACT} f5 {[%emt 0:06:58] CPLX 3.8 133 (f7-f6) (=34)} 29. gxf5 {[%emt 0:00:44] CPLX 3.9 31 (Rg1-g2) (=13). White is clearly winning.} Bxf5 {[%emt 0:00:31] EVAL 257 (Kg8-f7) (=44)} (29... Kf7 $142 30. fxg6+ Kxg6) 30. Rg2 {[%emt 0:01:54] EVAL} Qd4 {[%emt 0:00:36] BEVAL 350 (Bf5-d7) (=57)} 31. Be3 {[%emt 0:00:35] BEVAL} Qd3 {[%emt 0:00:10] BEVAL} 32. Rd2 {[%emt 0:00:50] Weighted Error Value: White=0.18 (very precise) /Black=0.44} 1-0